fUST/lending_fUST_20240501
["ID","MTS","AMOUNT","RATE_DAILY","PERIOD"]
[325197971,1714573842275,-500.0,0.00054794,120]
[325197972,1714573842284,-3822.44,0.00054794,120]
[325197973,1714573842294,-500.0,0.00054794,120]
[325197974,1714573842304,-500.0,0.00054794,120]
[325197975,1714573842313,-500.0,0.00054794,120]
[325197976,1714573842323,-860.05,0.00054794,120]
[325197977,1714573842332,-514.57148142,0.00054794,120]
[325197978,1714573842342,-500.0,0.00054794,120]
[325197979,1714573842351,-500.0,0.00054794,120]
[325197980,1714573842361,-504.0284564,0.00054794,120]
[325197981,1714573842371,-500.0,0.00054794,120]
[325197982,1714573842380,-500.0,0.00054794,2]
[325197983,1714573842390,-501.62757547,0.00054794,120]
[325197984,1714573842399,-502.41483296,0.00054794,120]
[325197985,1714573842412,-500.0,0.00054794,120]
[325197986,1714573842421,-155.09148202,0.00054794,120]
[325197987,1714573842430,-494.75787689,0.00054794,120]
[325197988,1714573842439,-500.0,0.00054794,120]
[325197989,1714573842449,-500.0,0.00054794,120]
[325197990,1714573842458,-172.03711429,0.00054794,120]
[325197991,1714573842467,-500.0,0.00054794,120]
[325197992,1714573842476,-500.0,0.00054794,120]
[325197993,1714573842485,-500.0,0.00054794,120]
[325197994,1714573842494,-500.0,0.00054794,120]
[325197995,1714573842503,-500.0,0.00054794,120]
[325197996,1714573842513,-624.63,0.00054794,120]
[325197997,1714573842527,-738.55,0.00054794,120]
[325197998,1714573842536,-500.0,0.00054794,120]
[325197999,1714573842545,-547.21,0.00054794,120]
[325198000,1714573842555,-500.0,0.00054794,120]
[325198001,1714573842565,-500.0,0.00054794,120]
[325198002,1714573842576,-500.0,0.00054794,120]
[325198003,1714573842585,-500.0,0.00054794,120]
[325198004,1714573842595,-500.0,0.00054794,120]
[325198005,1714573842606,-837.45,0.00054794,120]
[325198006,1714573842617,-519.57,0.00054794,120]
[325198007,1714573842628,-500.0,0.00054794,120]
[325198008,1714573842637,-500.0,0.00054794,120]
[325198009,1714573842654,-500.0,0.00054794,120]
[325198010,1714573842664,-551.86443502,0.00054794,120]
[325198011,1714573842673,-168.56552427,0.00054794,120]
[325198012,1714573842884,-331.43447573,0.00054794,120]
[325198013,1714573842894,-500.0,0.00054794,120]
[325198014,1714573842904,-1303.0,0.00054794,120]
[325198015,1714573842914,-500.0,0.00054794,120]
[325198016,1714573842923,-500.69337852,0.00054794,120]
[325198017,1714573842932,-94.89514575,0.00054794,120]
[325198018,1714573842947,-405.24485425,0.00054794,120]
[325198019,1714573842956,-500.0,0.00054794,120]
[325198020,1714573842965,-239.75814575,0.00054794,120]
[325198134,1714573846937,-260.88010251,0.00054794,120]
[325198135,1714573846947,-174.83707303,0.00054794,120]
[325198136,1714574072092,220.91907218,0.00019178,2]
[325198137,1714574192813,24900.0,0.00019906,2]
[325198145,1714574252516,160.787358,0.0001957,2]
[325198153,1714574425325,263.424633,0.00019844,2]
[325198165,1714574652617,330.39,0.0001,5]
[325198167,1714574659869,24900.0,0.00019655,2]
[325198168,1714574698955,583.66545878,9.999e-05,2]
[325198177,1714574802122,-272.88032191,0.00020766,2]
[325198190,1714575010670,273.37336231,9.9e-05,2]
[325198191,1714575019029,273.37336231,9.9e-05,2]
[325198192,1714575027491,273.37336231,9.9e-05,2]
[325198224,1714575034318,-635.8895,0.00015683,2]
[325198338,1714575036158,273.37336231,9.9e-05,2]
[325198370,1714575039234,-1821.14282127,0.00015683,2]
[325198372,1714575039244,-583.66545878,0.00015683,2]
[325198374,1714575039253,-1455.50148521,0.00015684,2]
[325198376,1714575039263,-9378.45996285,0.00016,2]
[325198378,1714575039272,-2590.79776208,0.0001882,2]
[325198380,1714575039283,-768.52966256,0.00018821,2]
[325198382,1714575039292,-342.41172293,0.00019866,2]
[325198384,1714575039301,-928.84070559,0.00019866,2]
[325198386,1714575039311,-167.74301048,0.00020143,2]
[325198388,1714575039320,-3051.58762507,0.00020757,2]
[325198390,1714575039329,-500.0,0.00020765,2]
[325198392,1714575039338,-421.51725408,0.00020765,2]
[325198394,1714575039348,-220.91907218,0.00020765,2]
[325198396,1714575039358,-500.0,0.00020765,2]
[325198398,1714575039373,-500.0,0.00020765,2]
[325198400,1714575039384,-361.76385605,0.00020765,2]
[325198402,1714575039394,-199.4842815,0.00020765,2]
[325198404,1714575039404,-500.0,0.00020765,2]
[325198406,1714575039414,-264.05722156,0.00020765,2]
[325198409,1714575039423,-500.0,0.00020765,2]
[325198411,1714575039432,-393.56072393,0.00020765,2]
[325198412,1714575039442,-500.0,0.00020765,2]
[325198414,1714575039451,-500.0,0.00020765,2]
[325198417,1714575039461,-194.18242801,0.00020765,2]
[325198419,1714575039470,-455.94876214,0.00020765,2]
[325198421,1714575039480,-170.65731625,0.00020765,2]
[325198519,1714575040442,-329.34268375,0.00020765,2]
[325198521,1714575040452,-246.00731625,0.00020765,2]
[325198907,1714575044959,273.37336231,9.9e-05,2]
[325199035,1714575046136,-253.99268375,0.00020765,2]
[325199037,1714575046146,-7.81731625,0.00020765,2]
[325199756,1714575053537,273.37336231,9.9e-05,2]
[325200291,1714575062355,273.37336231,9.9e-05,2]
[325200526,1714575065833,283.95389061,9.999e-05,2]
[325200665,1714575067994,16106.11737102,9.9e-05,2]
[325200666,1714575070394,273.37336231,9.9e-05,2]
[325200667,1714575074692,364.03243899,9.9e-05,2]
[325200668,1714575074781,154.84515485,9.999e-05,2]
[325200669,1714575075254,154.84515485,9.9e-05,2]
[325200670,1714575075944,154.84515485,9.9e-05,2]
[325200671,1714575076301,19202.35106111,9.9e-05,2]
[325200672,1714575077248,285.10266743,9.9e-05,2]
[325200673,1714575077692,280.83049419,9.9e-05,2]
[325200674,1714575078307,565.13944552,9.999e-05,2]
[325200675,1714575078612,1492.097253,9.999e-05,2]
[325200676,1714575078745,273.37336231,9.9e-05,2]
[325200677,1714575079088,154.84515485,9.9e-05,2]
[325200678,1714575081333,511.66515307,9.999e-05,2]
[325200679,1714575081707,1091.78088148,9.999e-05,2]
[325200680,1714575081796,717.98897193,9.999e-05,2]
[325200681,1714575081957,354.57887113,9.999e-05,2]
[325200682,1714575082726,154.84515485,9.9e-05,2]
[325200683,1714575086748,273.37336231,9.9e-05,2]
[325200684,1714575087999,5236.40210317,9.9e-05,2]
[325200685,1714575088040,10869.71526785,9.9e-05,2]
[325200686,1714575089264,155.22233812,9.9e-05,2]
[325200687,1714575091681,155.69542945,9.9e-05,2]
[325200688,1714575092705,364.03243899,9.9e-05,2]
[325200689,1714575093008,526.99118961,9.999e-05,2]
[325200690,1714575093380,285.10266743,9.9e-05,2]
[325200691,1714575093676,280.54594675,9.9e-05,2]
[325200692,1714575094318,2762.91114629,9.9e-05,2]
[325200693,1714575095067,155.69542945,9.801e-05,2]
[325200694,1714575095112,229.1067082,9.9e-05,2]
[325200695,1714575098725,155.08122579,9.9e-05,2]
[325200696,1714575103276,273.37336231,9.9e-05,2]
[325200697,1714575108003,16106.11737102,9.9e-05,2]
[325200698,1714575111523,273.37336231,9.9e-05,2]
[325200699,1714575112946,364.03243899,9.9e-05,2]
[325200700,1714575113294,285.10266743,9.9e-05,2]
[325200701,1714575119657,273.37336231,9.9e-05,2]
[325200702,1714575127780,1378.68043058,9.999e-05,2]
[325200703,1714575127936,273.37336231,9.9e-05,2]
[325200704,1714575128011,9832.47385481,9.9e-05,2]
[325200705,1714575128042,6273.64351621,9.9e-05,2]
[325200706,1714575132698,364.03243899,9.9e-05,2]
[325200707,1714575135251,285.10266743,9.9e-05,2]
[325200708,1714575137092,273.37336231,9.9e-05,2]
[325200709,1714575144010,15241.20045563,9.9e-05,2]
[325200710,1714575146060,273.37336231,9.9e-05,2]
[325200711,1714575148380,206.3030976,9.999e-05,2]
[325200712,1714575150718,364.03243899,9.9e-05,2]
[325200713,1714575154067,273.37336231,9.9e-05,2]
[325200714,1714575155274,328.95678544,9.9e-05,2]
[325200715,1714575162480,273.37336231,9.9e-05,2]
[325200716,1714575171190,364.03243899,9.9e-05,2]
[325200717,1714575171236,156.72349929,9.9e-05,2]
[325200718,1714575192717,275.24636793,9.9e-05,2]
[325200719,1714575499210,154.84515485,0.00015,14]
[325200720,1714575621482,-283.95389061,0.00012492,2]
[325200721,1714575621503,-583.66545878,0.00012493,2]
[325200722,1714575621526,-2457.03232127,0.00012493,2]
[325200723,1714575621547,-1378.68043058,0.00012494,2]
[325200724,1714575621568,-4446.66789876,0.000125,2]
[325200726,1714575686167,54.5483495,0.00015467,14]
[325200727,1714575696947,206.3030976,9.999e-05,2]
[325200732,1714576051699,583.66545878,9.999e-05,2]
[325200733,1714576097809,9782.84582638,0.0001,2]
[325200734,1714576114501,283.95389061,9.999e-05,2]
[325200735,1714576118941,1378.68043058,9.999e-05,2]
[325200736,1714576123178,1492.097253,9.999e-05,2]
[325200760,1714576234685,-9140.592806,0.00012373,2]
[325200763,1714576234695,-155.16949658,0.00012396,2]
[325200764,1714576234706,-2457.03232127,0.00012499,2]
[325200767,1714576234716,-923.06749304,0.000125,2]
[325200769,1714576234726,-250.0,0.00012594,2]
[325200770,1714576234737,-1378.68043058,0.00013422,2]
[325200772,1714576234748,-615.2889868,0.00013424,2]
[325200774,1714576234758,-24900.0,0.00013649,2]
[325200776,1714576234769,-225.002595,0.00013699,2]
[325200778,1714576234780,-928.84070559,0.00014,2]
[325200780,1714576234790,-283.92721817,0.00016259,2]
[325200782,1714576234800,-1159.90835226,0.00016259,2]
[325200784,1714576234810,-206.3030976,0.0001626,2]
[325200786,1714576234820,-272.87483722,0.000165,2]
[325200788,1714576234830,-150.0,0.000189,2]
[325200790,1714576234841,-4529.55884222,0.00019002,2]
[325200792,1714576234851,-184.04138252,0.000191,2]
[325200794,1714576234862,-160.799208,0.00019178,2]
[325200796,1714576234873,-2659.9587492,0.00019655,2]
[325200798,1714576234882,-8222.90041926,0.00019999,2]
[325200800,1714576234892,-500.0,0.00019999,2]
[325200802,1714576234908,-500.0,0.00019999,2]
[325200804,1714576234918,-500.0,0.00019999,2]
[325200806,1714576234928,-500.0,0.00019999,2]
[325200808,1714576234939,-500.0,0.00019999,2]
[325200810,1714576234948,-500.0,0.00019999,2]
[325200812,1714576234959,-328.69755751,0.00019999,2]
[325200814,1714576234969,-638.55929158,0.00019999,2]
[325200816,1714576234978,-10594.99994698,0.0002,2]
[325200818,1714576234988,-154.84515485,0.0002,14]
[325200820,1714576234997,-225.002595,0.00020548,2]
[325200822,1714576235006,-541.23237224,0.00020666,2]
[325200824,1714576235016,-526.99118961,0.00020763,2]
[325200826,1714576235026,-249.9357354,0.00020764,2]
[325200828,1714576235035,-3778.64009824,0.00020764,2]
[325200830,1714576235045,-309.53574583,0.00020764,2]
[325200832,1714576235054,-565.13944552,0.00020764,2]
[325200834,1714576235064,-185.6564932,0.00020764,2]
[325200836,1714576235074,-354.57887113,0.00020764,2]
[325200838,1714576235083,-1091.78088148,0.00020764,2]
[325200840,1714576235093,-717.98897193,0.00020764,2]
[325200842,1714576235103,-241.74656629,0.00020765,2]
[325200844,1714576235112,-559.84528445,0.00020765,2]
[325200846,1714576235122,-327.45309495,0.00020765,2]
[325200848,1714576235132,-500.0,0.00020765,2]
[325200850,1714576235141,-418.06821718,0.00020765,2]
[325200852,1714576235150,-1912.52146806,0.00020766,2]
[325200854,1714576235160,-309.65937468,0.00020766,2]
[325200856,1714576235171,-154.84515485,0.00020766,2]
[325200858,1714576235180,-154.99687411,0.00020766,2]
[325200859,1714576235193,-2414.33921056,0.00020766,2]
[325200862,1714576235210,-1433.075,0.00020766,2]
[325200864,1714576235222,-316.23475701,0.00020766,2]
[325200981,1714576246509,-583.66545878,0.00012395,2]
[325200983,1714576246518,-9373.10271532,0.00020766,2]
[325200984,1714576295456,460.2591171,9.999e-05,2]
[325200986,1714576664699,264.50884171,9.9e-05,2]
[325200987,1714576667530,19193.57611322,9.999e-05,2]
[325200988,1714576668160,280.68822047,9.999e-05,2]
[325200989,1714576668210,257.98919445,9.999e-05,2]
[325200990,1714576673937,2627.08475898,9.998e-05,2]
[325200991,1714576726212,769.1530622,0.0001,2]
[325200992,1714576767300,164.12449939,9.999e-05,2]
[325200993,1714576780245,469.01811337,9.999e-05,2]
[325200994,1714576848626,1378.68043058,9.999e-05,2]
[325200995,1714576870372,1492.097253,9.999e-05,2]
[325200997,1714576918332,583.66545878,9.999e-05,2]
[325200998,1714576927602,460.2591171,9.999e-05,2]
[325201002,1714577075713,285.10266743,9.999e-05,2]
[325201003,1714577075909,513.56271106,9.999e-05,2]
[325201004,1714577093504,284.76765393,9.999e-05,2]
[325201005,1714577133561,3893.8088336,9.999e-05,2]
[325201006,1714577162056,1203.54975148,9.999e-05,2]
[325201017,1714577331106,1378.68043058,9.999e-05,2]
[325201020,1714577355869,583.66545878,9.999e-05,2]
[325201072,1714577436053,-2457.03232127,0.00013688,2]
[325201074,1714577436064,-250.0,0.00013692,2]
[325201076,1714577436073,-928.84070559,0.00014,2]
[325201078,1714577436083,-14210.54989332,0.00014236,2]
[325201080,1714577436093,-1455.50148521,0.00014237,2]
[325201081,1714577436102,-1576.53826808,0.00015458,2]
[325201083,1714577436113,-1378.68043058,0.00015458,2]
[325201086,1714577436122,-583.66545878,0.00015458,2]
[325201087,1714577436132,-309.53569955,0.00015459,2]
[325201089,1714577436145,-12398.66147919,0.0001546,2]
[325201091,1714577436156,-12501.33852081,0.0001546,2]
[325201093,1714577436165,-272.87483722,0.000165,2]
[325201095,1714577436175,-768.23608796,0.00017084,2]
[325201096,1714577436184,-342.41172293,0.00018033,2]
[325201097,1714577436194,-150.0,0.000189,2]
[325201098,1714577436204,-3051.58762507,0.00018983,2]
[325201099,1714577436214,-2625.94115674,0.00018983,2]
[325201100,1714577436223,-2590.79776208,0.00018983,2]
[325201101,1714577436232,-267.92411075,0.00018983,2]
[325201102,1714577436242,-164.02922901,0.00018983,2]
[325201103,1714577436251,-468.88112624,0.00018983,2]
[325201104,1714577436261,-1491.26866614,0.00018983,2]
[325201105,1714577436270,-460.01375854,0.00018983,2]
[325201106,1714577436280,-206.84821855,0.00018983,2]
[325201107,1714577436289,-513.38537126,0.00018983,2]
[325201108,1714577436299,-1203.25513556,0.00018983,2]
[325201109,1714577436308,-1891.97802376,0.00018984,2]
[325201110,1714577436318,-1418.22983651,0.00018984,2]
[325201111,1714577436330,-7960.23012634,0.00018984,2]
[325201112,1714577436338,-154.84515485,0.00019,2]
[325201113,1714577436347,-500.0,0.00019178,2]
[325201114,1714577436356,-500.0,0.00019178,2]
[325201115,1714577436365,-500.0,0.00019178,2]
[325201116,1714577436375,-500.0,0.00019178,2]
[325201117,1714577436384,-500.0,0.00019178,2]
[325201118,1714577436396,-500.0,0.00019178,2]
[325201119,1714577436406,-500.0,0.00019178,2]
[325201120,1714577436416,-500.0,0.00019178,2]
[325201121,1714577436425,-203.1886175,0.00019178,2]
[325201122,1714577436435,-500.0,0.00019178,2]
[325201123,1714577436444,-500.0,0.00019178,2]
[325201124,1714577436454,-500.0,0.00019178,2]
[325201125,1714577436463,-500.0,0.00019178,2]
[325201126,1714577436473,-500.0,0.00019178,2]
[325201127,1714577436482,-500.0,0.00019178,2]
[325201128,1714577436492,-500.0,0.00019178,2]
[325201129,1714577436501,-500.0,0.00019178,2]
[325201130,1714577436510,-500.0,0.00019178,2]
[325201131,1714577436520,-500.0,0.00019178,2]
[325201132,1714577436529,-500.0,0.00019178,2]
[325201133,1714577436539,-500.0,0.00019178,2]
[325201134,1714577436548,-500.0,0.00019178,2]
[325201135,1714577436562,-500.0,0.00019178,2]
[325201136,1714577436572,-500.0,0.00019178,2]
[325201137,1714577436584,-500.0,0.00019178,2]
[325201138,1714577436594,-500.0,0.00019178,2]
[325201139,1714577436606,-178.59742499,0.00019178,2]
[325201140,1714577436615,-500.0,0.00019178,2]
[325201141,1714577436626,-500.0,0.00019178,2]
[325201142,1714577436636,-610.37334849,0.00019178,2]
[325201143,1714577436649,-500.0,0.00019178,2]
[325201144,1714577436659,-556.09867319,0.00019178,2]
[325201145,1714577436669,-500.0,0.00019178,2]
[325201146,1714577436679,-500.0,0.00019178,2]
[325201147,1714577436689,-500.0,0.00019178,2]
[325201148,1714577436700,-500.0,0.00019178,2]
[325201149,1714577436710,-500.0,0.00019178,2]
[325201150,1714577436719,-500.0,0.00019178,2]
[325201151,1714577436729,-500.0,0.00019178,2]
[325201152,1714577436739,-323.60650105,0.00019178,2]
[325201153,1714577436750,-176.39349895,0.00019178,2]
[325201154,1714577436760,-500.0,0.00019178,2]
[325201155,1714577436769,-500.0,0.00019178,2]
[325201156,1714577436779,-255.02977706,0.00019178,2]
[325201171,1714577439000,-244.97022294,0.00019178,2]
[325201172,1714577439009,-420.89905964,0.00019178,2]
[325201173,1714577439021,-79.10094036,0.00019178,2]
[325201174,1714577439030,-500.0,0.00019178,2]
[325201175,1714577439040,-500.0,0.00019178,2]
[325201176,1714577439049,-58.01905964,0.00019178,2]
[325201177,1714577439061,-441.98094036,0.00019178,2]
[325201178,1714577439071,-500.0,0.00019178,2]
[325201179,1714577439081,-500.0,0.00019178,2]
[325201180,1714577439090,-500.0,0.00019178,2]
[325201181,1714577439099,-500.0,0.00019178,2]
[325201182,1714577439109,-500.0,0.00019178,2]
[325201183,1714577439119,-500.0,0.00019178,2]
[325201184,1714577439129,-500.0,0.00019178,2]
[325201185,1714577439139,-500.0,0.00019178,2]
[325201186,1714577439154,-500.0,0.00019178,2]
[325201187,1714577439165,-500.0,0.00019178,2]
[325201188,1714577439175,-500.0,0.00019178,2]
[325201189,1714577439184,-500.0,0.00019178,2]
[325201190,1714577439194,-200.0,0.00019178,2]
[325201191,1714577439203,-500.0,0.00019178,2]
[325201192,1714577439212,-500.0,0.00019178,2]
[325201193,1714577439221,-500.0,0.00019178,2]
[325201194,1714577439230,-500.0,0.00019178,2]
[325201196,1714577439239,-500.0,0.00019178,2]
[325201197,1714577439249,-160.943638,0.00019178,2]
[325201198,1714577439258,-160.799208,0.00019178,2]
[325201199,1714577439267,-7687.07892881,0.00019999,2]
[325201200,1714577439277,-10624.15752738,0.0002,2]
[325201201,1714577439286,-154.92253873,0.0002,14]
[325201202,1714577439295,-167.74301048,0.0002,2]
[325201203,1714577439305,-682.81356657,0.000205,4]
[325201204,1714577439314,-432.9858978,0.00020666,2]
[325201205,1714577439323,-1178.90795644,0.00020762,2]
[325201206,1714577439332,-5807.75773021,0.00020764,2]
[325201207,1714577439341,-500.0,0.00020765,2]
[325201208,1714577439350,-421.51725408,0.00020765,2]
[325201209,1714577439359,-500.0,0.00020765,2]
[325201210,1714577439368,-361.76385605,0.00020765,2]
[325201211,1714577439378,-500.0,0.00020765,2]
[325201212,1714577439387,-500.0,0.00020765,2]
[325201213,1714577439399,-500.0,0.00020765,2]
[325201214,1714577439409,-500.0,0.00020765,2]
[325201215,1714577439418,-500.0,0.00020765,2]
[325201216,1714577439427,-500.0,0.00020765,2]
[325201217,1714577439436,-500.0,0.00020765,2]
[325201218,1714577439446,-500.0,0.00020765,2]
[325201219,1714577439455,-500.0,0.00020765,2]
[325201220,1714577439465,-500.0,0.00020765,2]
[325201221,1714577439474,-562.84388918,0.00020765,2]
[325201222,1714577439484,-500.0,0.00020765,2]
[325201223,1714577439492,-500.0,0.00020765,2]
[325201224,1714577439502,-432.52963772,0.00020765,2]
[325201225,1714577439511,-500.0,0.00020765,2]
[325201226,1714577439520,-500.0,0.00020765,2]
[325201227,1714577439530,-519.18358222,0.00020765,2]
[325201228,1714577439539,-500.0,0.00020765,2]
[325201229,1714577439548,-500.0,0.00020765,2]
[325201230,1714577439559,-500.0,0.00020765,2]
[325201231,1714577439570,-500.0,0.00020765,2]
[325201232,1714577439579,-500.0,0.00020765,2]
[325201233,1714577439589,-500.0,0.00020765,2]
[325201234,1714577439599,-500.0,0.00020765,2]
[325201235,1714577439609,-500.0,0.00020765,2]
[325201236,1714577439618,-407.50380736,0.00020765,2]
[325201237,1714577439627,-109604.76882059,0.00020766,2]
[325201238,1714577439637,-155.47035805,0.00020766,2]
[325201239,1714577439650,-173.21086087,0.00020766,2]
[325201240,1714577439660,-157.580336,0.00020766,2]
[325201241,1714577439670,-157.580336,0.00020766,2]
[325201242,1714577439679,-155.721461,0.00020766,2]
[325201243,1714577439688,-155.721461,0.00020766,2]
[325201244,1714577439697,-771.73283885,0.0002091,2]
[325201245,1714577439707,-193.87010555,0.00020911,2]
[325201246,1714577439717,-1313.3815191,0.00020911,2]
[325201247,1714577439726,-6519.8150674,0.00020912,2]
[325201248,1714577439736,-4630.62639234,0.00020912,2]
[325201249,1714577439745,-272.88032191,0.00020912,2]
[325201250,1714577439754,-475.32221455,0.00020912,2]
[325201251,1714577439764,-891.03583559,0.00020912,2]
[325201252,1714577439773,-1678.22103741,0.00020912,2]
[325201253,1714577439783,-551.42384778,0.00020912,2]
[325201254,1714577439792,-312.97578303,0.00020912,2]
[325201255,1714577439802,-603.94471779,0.00020912,2]
[325201256,1714577439811,-700.70596004,0.00020912,2]
[325201257,1714577439821,-362.38148801,0.00020912,2]
[325201258,1714577439830,-314.85282276,0.00020912,2]
[325201259,1714577439840,-487.60404824,0.00020912,2]
[325201260,1714577439849,-939.61631274,0.00020912,2]
[325201261,1714577439858,-683.41665733,0.00020912,2]
[325201262,1714577439867,-154.84515485,0.00020912,2]
[325201263,1714577439877,-550.1739942,0.00020912,2]
[325201264,1714577439886,-157.99223186,0.00020912,2]
[325201265,1714577439897,-2101.71813346,0.00020912,2]
[325201266,1714577439907,-981.8517699,0.00020912,2]
[325201267,1714577439916,-151.0,0.00021918,2]
[325201268,1714577439925,-166.666666,0.00021918,2]
[325201269,1714577439934,-166.666666,0.00022431,2]
[325201270,1714577439943,-166.666666,0.00022944,2]
[325201271,1714577439953,-166.666666,0.00023456,2]
[325201272,1714577439962,-150.0,0.000239,2]
[325201273,1714577439972,-166.666666,0.00023969,2]
[325201274,1714577439981,-166.666666,0.00024482,2]
[325201275,1714577439991,-9701.0,0.000267,2]
[325201276,1714577440001,-157.580336,0.000267,2]
[325201277,1714577440010,-157.580336,0.000267,2]
[325201278,1714577440019,-193.571571,0.000267,2]
[325201279,1714577440029,-155.721461,0.000267,2]
[325201280,1714577440039,-155.721461,0.000267,2]
[325201281,1714577440048,-50000.0,0.00027,30]
[325201282,1714577440057,-157.580336,0.00027,2]
[325201283,1714577440067,-157.580336,0.00027,2]
[325201284,1714577440076,-155.721461,0.00027,2]
[325201285,1714577440085,-155.721461,0.00027,2]
[325201286,1714577440094,-432.98589779,0.00027569,2]
[325201287,1714577440103,-620.00000004,0.00028382,2]
[325201288,1714577440113,-250.0,0.000299,2]
[325201289,1714577440123,-88888.0,0.000299,3]
[325201290,1714577440132,-262.41932732,0.000299,2]
[325201291,1714577440142,-155.721461,0.000299,2]
[325201292,1714577440156,-155.721461,0.000299,2]
[325201293,1714577440165,-11847.89140975,0.0003,45]
[325201295,1714577440177,-1983.87397999,0.0003,45]
[325201338,1714577444208,-285.555,0.0003,45]
[325201364,1714577535270,-583.66545878,0.00018215,2]
[325201365,1714577535291,-2457.03232127,0.00018216,2]
[325201366,1714577535312,-1378.68043058,0.00018216,2]
[325201367,1714577535333,-928.84070559,0.00018217,2]
[325201368,1714577535356,-154.90705577,0.00019,2]
[325201369,1714577535376,-235.32855546,0.00019,2]
[325201370,1714577535396,-1029.79317955,0.00019168,2]
[325201371,1714577535416,-2099.98323324,0.00019176,2]
[325201372,1714577535436,-603.75411,0.00019176,2]
[325201373,1714577535457,-189.24695719,0.00019176,2]
[325201374,1714577535659,-539.38994365,0.00019177,2]
[325201375,1714577535685,-500.0,0.00019178,2]
[325201376,1714577535706,-500.0,0.00019178,2]
[325201377,1714577535729,-500.0,0.00019178,2]
[325201378,1714577535749,-500.0,0.00019178,2]
[325201379,1714577535771,-500.0,0.00019178,2]
[325201380,1714577535792,-500.0,0.00019178,2]
[325201381,1714577535814,-418.57804892,0.00019178,2]
[325201382,1714577611194,154.90705577,9.999e-05,2]
[325201383,1714577615352,154.90705577,9.999e-05,2]
[325201384,1714577617167,522.20590757,9.999e-05,2]
[325201385,1714577725697,19202.35106111,9.999e-05,2]
[325201386,1714577743624,9497.48329581,9.999e-05,2]
[325201387,1714577851928,1000.0,0.00025,60]
[325201389,1714578117492,1313.3815191,0.0001,2]
[325201390,1714578157452,583.66545878,9.999e-05,2]
[325201391,1714578194504,513.56271106,9.999e-05,2]
[325201392,1714578262704,1378.68043058,9.999e-05,2]
[325201470,1714578632733,-1036.06015359,0.00013992,2]
[325201474,1714578632792,-1420.97216768,0.00013992,2]
[325201475,1714578632802,-583.66545878,0.00013993,2]
[325201476,1714578632811,-1378.68043058,0.00013994,2]
[325201478,1714578632821,-928.84070559,0.00017044,2]
[325201479,1714578632830,-24900.0,0.00017046,2]
[325201480,1714578632840,-2886.15800043,0.00018007,2]
[325201481,1714578632849,-189.24695719,0.00018087,2]
[325201483,1714578632858,-2099.98323324,0.00018087,2]
[325201484,1714578632867,-513.38537126,0.00018087,2]
[325201485,1714578632877,-539.38994365,0.00018087,2]
[325201486,1714578632888,-272.88032191,0.00018087,2]
[325201487,1714578632897,-390.93322179,0.00018088,2]
[325201488,1714578632906,-603.75411,0.000185,2]
[325201489,1714578632919,-150.0,0.000189,2]
[325201490,1714578632930,-154.95117327,0.00019,2]
[325201491,1714578632941,-235.32855546,0.00019,2]
[325201492,1714578632950,-160.966445,0.00019178,2]
[325201493,1714578632959,-160.943638,0.00019381,2]
[325201494,1714578632970,-630.95526944,0.00019995,2]
[325201495,1714578632979,-500.0,0.00019995,2]
[325201496,1714578632989,-500.0,0.00019995,2]
[325201497,1714578632998,-500.0,0.00019995,2]
[325201498,1714578633009,-500.0,0.00019995,2]
[325201499,1714578633018,-172.89985258,0.00019995,2]
[325201500,1714578633027,-500.0,0.00019995,2]
[325201501,1714578633037,-500.0,0.00019995,2]
[325201502,1714578633046,-500.0,0.00019995,2]
[325201503,1714578633056,-500.0,0.00019995,2]
[325201504,1714578633066,-500.0,0.00019995,2]
[325201505,1714578633075,-500.0,0.00019995,2]
[325201506,1714578633084,-500.0,0.00019995,2]
[325201507,1714578633093,-500.0,0.00019995,2]